fUSD/lending_fUSD_20241102
["ID","MTS","AMOUNT","RATE_DAILY","PERIOD"]
[341166552,1730505621574,194.16,0.00019178,2]
[341166553,1730505661201,300.0,0.00019725,2]
[341166554,1730505772172,154.81,0.00015342,2]
[341166555,1730505878045,150.0,0.0002101,5]
[341166556,1730505946916,250.0,0.00017,2]
[341166557,1730505947992,300.0,0.00019,2]
[341166577,1730506100366,150.0,0.00018123,2]
[341166578,1730506141321,300.0,0.00019725,2]
[341166579,1730506141851,150.0,0.00018123,2]
[341166580,1730506183422,253.99539278,0.00018123,2]
[341166586,1730506232238,-350.0,0.00021,2]
[341166587,1730506232248,-7242.1080648,0.00030943,2]
[341166588,1730506232258,-453.0,0.000339,2]
[341166589,1730506232267,-971.33609851,0.00037763,2]
[341166590,1730506232276,-1166.2359609,0.00037863,120]
[341166591,1730506232283,-191.639,0.00038463,2]
[341166592,1730506232291,-209.81,0.00038463,2]
[341166593,1730506232299,-13631.59043718,0.00038463,2]
[341166594,1730506232307,-769.55,0.00038528,2]
[341166595,1730506232315,-8208.17,0.0004,120]
[341166596,1730506232323,-151.88,0.0004,56]
[341166597,1730506232332,-2320.35,0.0004,2]
[341166598,1730506232340,-299.99,0.0004,120]
[341166599,1730506232348,-516.4,0.00040301,2]
[341166600,1730506232357,-182.43,0.00040325,2]
[341166601,1730506232366,-150.0,0.00040346,7]
[341166602,1730506232375,-245.41,0.00040371,2]
[341166603,1730506232384,-2178.57,0.00040458,2]
[341166604,1730506232393,-2240.97,0.00040512,2]
[341166605,1730506232403,-769.55,0.00040792,2]
[341166606,1730506232412,-306.19,0.00040859,2]
[341166607,1730506232421,-1000.0,0.00040999,2]
[341166608,1730506232430,-157.0,0.00041096,2]
[341166609,1730506232439,-395.3292658,0.00041393,2]
[341166610,1730506232448,-46250.99178635,0.00041546,2]
[341166611,1730506232457,-167.14,0.00041556,2]
[341166612,1730506232466,-1100.0,0.000416,15]
[341166613,1730506232476,-395.32926581,0.00041659,2]
[341166614,1730506232485,-150.110208,0.00041698,120]
[341166615,1730506232495,-2200.0,0.000417,15]
[341166616,1730506232505,-300.0,0.00041767,2]
[341166617,1730506232514,-150.110208,0.00041798,120]
[341166618,1730506232523,-2014.9391,0.00041799,2]
[341166619,1730506232532,-1248.2176,0.000418,2]
[341166620,1730506232540,-3400.0,0.000418,15]
[341166621,1730506232550,-156.446,0.0004187,30]
[341166623,1730506232561,-1000.0,0.00041898,2]
[341166625,1730506232571,-2500.0,0.00041898,2]
[341166627,1730506232580,-275.30549214,0.00041899,15]
[341166629,1730506232591,-16883.6848,0.00041899,2]
[341166631,1730506232599,-712.805,0.00041899,2]
[341166632,1730506232608,-23084.5907,0.00041899,2]
[341166634,1730506232618,-5779.6629,0.000419,2]
[341166635,1730506232627,-1233.3539,0.000419,2]
[341166636,1730506232636,-16017.3401,0.000419,2]
[341166637,1730506232645,-4500.0,0.000419,15]
[341166638,1730506232655,-154.03,0.0004199,2]
[341166639,1730506232665,-684.37570811,0.00041997,3]
[341166640,1730506232674,-64792.21255382,0.00041997,3]
[341166641,1730506232687,-92138.96632573,0.00041997,3]
[341166642,1730506232703,-3418.2200052,0.00041997,3]
[341166643,1730506232721,-4927.78313753,0.00041997,3]
[341166648,1730506238197,-165.34639648,0.000338,2]
[341166649,1730506238206,-150.0,0.00041096,2]
[341166650,1730506238214,-193.82149714,0.00041898,2]
[341166651,1730506238249,-13251.94490833,0.00041898,2]
[341166652,1730506238260,-37010.14324801,0.00041898,2]
[341166653,1730506238271,-8559.41807991,0.00041898,2]
[341166654,1730506238303,-6664.73959699,0.00041898,2]
[341166655,1730506238357,-859.84736003,0.00041898,2]
[341166656,1730506238368,-1301.15361802,0.00041898,2]
[341166657,1730506238379,-749.86877271,0.00041898,2]
[341166658,1730506238390,-6329.97878758,0.00041898,2]
[341166659,1730506238400,-618.74932003,0.00041898,2]
[341166660,1730506238412,-8487.04970182,0.00041898,2]
[341166661,1730506238571,-1019.83248483,0.00041898,2]
[341166672,1730506240152,-2335.9751804,0.00041898,2]
[341166673,1730506240166,-1987.35025311,0.00041898,2]
[341166674,1730506240178,-363.5659589,0.00041898,2]
[341166675,1730506240190,-1131.97700472,0.00041898,2]
[341166676,1730506240203,-2337.06851588,0.00041898,2]
[341166677,1730506240214,-581.456,0.00041898,2]
[341166678,1730506240230,-616.89321857,0.00041898,2]
[341166679,1730506240241,-3441.32350153,0.00041898,2]
[341166680,1730506240261,-1986.34492326,0.00041898,2]
[341166681,1730506240314,-1227.9599996,0.00041898,2]
[341166682,1730506240325,-400.075,0.00041898,2]
[341166683,1730506240336,-541.03376639,0.00041898,2]
[341166684,1730506240347,-24080.97071843,0.00041898,2]
[341166685,1730506240357,-476.45777715,0.00041898,2]
[341166686,1730506240369,-418.45991569,0.00041898,2]
[341166687,1730506240379,-304.33735203,0.00041898,2]
[341166688,1730506240392,-117722.20353894,0.00041898,2]
[341166689,1730506240402,-54092.6639565,0.00041997,3]
[341166690,1730506240412,-500.0,0.00041999,2]
[341166691,1730506240422,-999.0,0.00041999,120]
[341166692,1730506240431,-890.0,0.00042,7]
[341166693,1730506240441,-73890.598569,0.00042,20]
[341166694,1730506240452,-68758.48121398,0.00042,20]
[341166695,1730506240465,-139355.79710075,0.00042,20]
[341166696,1730506240482,-376.98183927,0.00042,20]
[341166697,1730506240495,-621.51461131,0.00042,20]
[341166698,1730506240506,-1663.5002,0.00042,20]
[341166699,1730506240518,-478.75263346,0.00042,20]
[341166700,1730506240532,-143166.69247219,0.00042,20]
[341166701,1730506240544,-701.66503495,0.00042,20]
[341166702,1730506240555,-1787.55805162,0.00042,20]
[341166703,1730506240567,-844.46840723,0.00042,20]
[341166704,1730506240578,-722.19529931,0.00042,20]
[341166705,1730506240588,-123152.23738756,0.00042,20]
[341166708,1730506240600,-13633.77304795,0.00042,20]
[341166726,1730506243252,-2500.0,0.00041898,2]
[341166727,1730506243262,-101.18779003,0.00042,20]
[341166728,1730506243273,-15497.72949679,0.00042,20]
[341166729,1730506243284,-2408.78262254,0.00042,20]
[341166730,1730506243465,-24453.71974143,0.00042,20]
[341166752,1730506246461,-169771.32429042,0.00042,20]
[341166761,1730506262227,300.0,0.00019725,2]
[341166762,1730506293154,156.36,0.00015342,2]
[341166765,1730506321352,300.0,0.00019725,2]
[341166766,1730506441288,300.0,0.00019725,2]
[341166767,1730506570187,200.0,0.00019178,2]
[341166768,1730506653607,-158.06,0.00020574,2]
[341166769,1730506741224,300.0,0.00019725,2]
[341166770,1730506764776,157.78,0.00015342,2]
[341166771,1730507041262,300.0,0.00019725,2]
[341166772,1730507102031,300.0,0.00019725,2]
[341166773,1730507108416,798484.16,0.00016,2]
[341166774,1730507108443,1184687.85666048,0.00016,2]
[341166776,1730507130900,53670.38925159,0.000101,2]
[341166779,1730507285123,2433674.20170536,0.00015,2]
[341166785,1730507350945,168.04,0.00019178,2]
[341166809,1730507432339,-655.232,0.00023922,2]
[341166810,1730507432412,-2.57372298,0.00023922,2]
[341166811,1730507432421,-157.78,0.0003272,2]
[341166812,1730507432430,-444.62627702,0.00034,2]
[341166813,1730507432442,-960.37372298,0.00034,2]
[341166814,1730507432451,-766.07487983,0.00035,2]
[341166815,1730507432460,-160.24599389,0.00035937,2]
[341166816,1730507432470,-971.71,0.00038086,2]
[341166817,1730507432480,-55248.69514812,0.0004,2]
[341166818,1730507432489,-250.0,0.00040025,2]
[341166819,1730507432498,-261.82,0.00040037,2]
[341166820,1730507432507,-178.84,0.00040066,2]
[341166821,1730507432516,-150.0,0.00040124,2]
[341166822,1730507432525,-200.0,0.00040158,2]
[341166823,1730507432534,-150.0,0.00040158,7]
[341166824,1730507432543,-162.76,0.00040225,2]
[341166825,1730507432552,-419.36,0.00040256,2]
[341166826,1730507432562,-250.0,0.0004029,2]
[341166827,1730507432571,-971.71,0.0004035,2]
[341166828,1730507432582,-182.43,0.00040368,2]
[341166829,1730507432591,-19997.31,0.00040385,2]
[341166830,1730507432600,-178.66,0.00040641,2]
[341166831,1730507432609,-167.02,0.00040737,2]
[341166832,1730507432618,-280.286,0.00040745,2]
[341166833,1730507432628,-162.76,0.00040846,2]
[341166834,1730507432637,-1000.0,0.00040883,2]
[341166835,1730507432646,-167.02,0.00040941,2]
[341166836,1730507432655,-157.0,0.00041096,2]
[341166837,1730507432664,-150.0,0.00041096,2]
[341166838,1730507432673,-167.02,0.00041145,2]
[341166839,1730507432681,-150.0,0.00041348,2]
[341166840,1730507432690,-167.11,0.00041569,2]
[341166841,1730507432699,-500.0,0.000416,15]
[341166842,1730507432709,-150.110209,0.00041698,120]
[341166843,1730507432718,-1100.0,0.000417,15]
[341166844,1730507432727,-2500.0,0.0004178,2]
[341166845,1730507432736,-661.1,0.00041789,10]
[341166846,1730507432746,-310.26650371,0.00041798,2]
[341166847,1730507432755,-150.110209,0.00041798,120]
[341166848,1730507432763,-151.881,0.00041798,62]
[341166849,1730507432773,-736.1919,0.00041799,2]
[341166850,1730507432782,-26225.8694,0.00041799,2]
[341166851,1730507432791,-1000.0,0.000418,2]
[341166852,1730507432800,-1700.0,0.000418,15]
[341166853,1730507432809,-156.99,0.0004187,2]
[341166854,1730507432818,-500.0,0.00041873,2]
[341166855,1730507432828,-492508.65829403,0.0004188,2]
[341166856,1730507432841,-320000.0,0.0004188,2]
[341166857,1730507432852,-1157.66053093,0.0004188,2]
[341166858,1730507432863,-1859.87048133,0.0004188,2]
[341166859,1730507432876,-1238.62357742,0.0004188,2]
[341166868,1730507438592,-2903.0,0.00040745,2]
[341166869,1730507438601,-918.9202684,0.0004188,2]
[341166872,1730507440330,-377.76372378,0.0004188,2]
[341166873,1730507440343,-1421.99015992,0.0004188,2]
[341166874,1730507440517,-8839.88939566,0.0004188,2]
[341166875,1730507444680,-3001.89626082,0.0004188,2]
[341166898,1730507446361,-742.46485421,0.0004188,2]
[341166899,1730507446420,-18983.28781733,0.0004188,2]
[341166900,1730507446433,-127671.0549,0.00041898,2]
[341166901,1730507446442,-37784.6865,0.000419,2]
[341166902,1730507446451,-100000.0,0.000419,2]
[341166903,1730507446461,-217.0,0.000419,2]
[341166904,1730507446471,-402506.8717,0.000419,2]
[341166905,1730507446480,-2300.0,0.000419,15]
[341166906,1730507446489,-184.28893103,0.000419,120]
[341166907,1730507446499,-269.20843986,0.000419,2]
[341166908,1730507446508,-619.177663,0.000419,2]
[341166909,1730507446517,-24443.3440602,0.000419,2]
[341166910,1730507446526,-431.88,0.00041918,2]
[341166911,1730507446536,-431.88,0.00041918,2]
[341166912,1730507446545,-394.92,0.00041918,2]
[341166913,1730507446554,-500.0,0.00041973,10]
[341166914,1730507446563,-500.0,0.00041999,2]
[341166915,1730507446573,-999.0,0.00041999,120]
[341166916,1730507446582,-1412945.79895557,0.00042,20]
[341166917,1730507446598,-839.72,0.00042,60]
[341166918,1730507446608,-4158.13654884,0.00042,30]
[341166919,1730507446617,-4347.0313429,0.00042012,2]
[341166920,1730507446626,-7917.617731,0.00042012,2]
[341166921,1730507446635,-1549.6831919,0.00042015,2]
[341166922,1730507446644,-2258.50207,0.00042044,2]
[341166923,1730507446654,-1095.463816,0.00042044,2]
[341166924,1730507446663,-178.84,0.0004207,2]
[341166925,1730507446671,-687.0,0.00042073,7]
[341166926,1730507446681,-150.0,0.00042177,2]
[341166927,1730507446689,-971.71,0.00042614,2]
[341166928,1730507446698,-166.89,0.00042638,2]
[341166929,1730507446709,-999.0,0.00042684,120]
[341166930,1730507446719,-150.0,0.00042718,2]
[341166931,1730507446729,-748.13983322,0.00043242,2]
[341166932,1730507446740,-150.0,0.00043259,2]
[341166933,1730507446751,-167.11,0.00043325,2]
[341166934,1730507446761,-999.0,0.00043369,120]
[341166935,1730507446772,-5000.0,0.000435,60]
[341166936,1730507446782,-310.26650371,0.00043561,2]
[341166937,1730507446792,-163.33,0.00043562,2]
[341166938,1730507446802,-150.0,0.00043562,2]
[341166939,1730507446812,-150.0,0.00043562,2]
[341166940,1730507446822,-150.0,0.00043562,2]
[341166941,1730507446832,-151.0,0.00043569,5]
[341166942,1730507446843,-207.07317779,0.00043627,15]
[341166943,1730507446852,-152.0,0.00043654,3]
[341166944,1730507446861,-156.5,0.0004366,30]
[341166945,1730507446872,-200.0,0.00043738,3]
[341166946,1730507446882,-325.92718084,0.00043744,3]
[341166947,1730507446893,-1816.56552233,0.00043745,3]
[341166948,1730507446903,-2903.0,0.00043745,2]
[341166949,1730507446913,-17695.64035661,0.00043755,3]
[341166950,1730507446923,-200.0,0.00043755,3]
[341166951,1730507446934,-10962.06186408,0.00043761,3]
[341166952,1730507446944,-12433.20967117,0.00043763,3]
[341166953,1730507446954,-200.0,0.00043784,3]
[341166954,1730507446964,-2062.35209891,0.00043791,3]
[341166955,1730507446974,-325.92718084,0.00043794,3]
[341166956,1730507446984,-10962.06186408,0.00043796,3]
[341166957,1730507446994,-1856.97647596,0.00043803,3]
[341166958,1730507447003,-2062.35209891,0.00043804,3]
[341166959,1730507447013,-200.0,0.00043806,3]
[341166960,1730507447022,-17695.64035661,0.00043807,3]
[341166961,1730507447035,-336049.49899951,0.00043819,3]
[341166962,1730507447044,-200.0,0.0004382,3]
[341166963,1730507447053,-2062.35209891,0.00043825,3]
[341166964,1730507447063,-1816.56552233,0.00043836,3]
[341166965,1730507447073,-10962.06186408,0.00043836,3]
[341166966,1730507447083,-71855.50717943,0.00043855,3]
[341166967,1730507447215,-1856.97647596,0.00043859,3]
[341166968,1730507447226,-71855.50717943,0.00043864,3]
[341166969,1730507447235,-12433.20967117,0.0004387,3]
[341166970,1730507447244,-17695.64035661,0.00043876,3]
[341166971,1730507447254,-10962.06186408,0.00043876,3]
[341166972,1730507447263,-1856.97647596,0.00043882,3]
[341166973,1730507447272,-71855.50717943,0.00043888,3]
[341166974,1730507447281,-2062.35209891,0.00043901,3]
[341166975,1730507447290,-200.0,0.00043901,3]
[341166976,1730507447300,-200.0,0.00043911,3]
[341166977,1730507447309,-12433.20967117,0.00043917,3]
[341166978,1730507447319,-336049.49899951,0.00043921,3]
[341166979,1730507447329,-1816.56552233,0.00043923,3]
[341166980,1730507447341,-3279.93349426,0.00043938,3]
[341166981,1730507447351,-17695.64035661,0.0004395,3]
[341166982,1730507447360,-336049.49899951,0.00043956,3]
[341166983,1730507447369,-1856.97647596,0.00043959,3]
[341166984,1730507447379,-3279.93349426,0.00043964,3]
[341166985,1730507447388,-12433.20967117,0.00043968,3]
[341166986,1730507447397,-3279.93349426,0.00043971,3]
[341166987,1730507447407,-325.92718084,0.00043984,3]
[341166988,1730507447416,-71855.50717943,0.00043984,3]
[341166989,1730507447429,-3279.93349426,0.00043987,3]
[341166990,1730507447438,-1816.56552233,0.00043987,3]
[341166991,1730507447447,-336049.49899951,0.00043992,3]
[341166992,1730507447456,-163.0,0.00044,120]
[341166993,1730507447465,-2265.0,0.00044,4]
[341166994,1730507447475,-839.72,0.00044,60]
[341166995,1730507447485,-999.0,0.00044054,120]
[341166996,1730507447494,-178.84,0.00044073,2]
[341166997,1730507447505,-150.0,0.00044177,120]
[341166998,1730507447517,-5000.0,0.000443,120]
[341166999,1730507447527,-150.0,0.0004434,2]
[341167000,1730507447536,-5000.0,0.0004435,120]
[341167001,1730507447545,-10000.0,0.0004435,120]
[341167002,1730507447557,-150.0,0.00044357,2]
[341167003,1730507447567,-150.0,0.00044358,2]
[341167004,1730507447577,-150.0,0.00044358,2]
[341167005,1730507447588,-150.0,0.00044363,2]
[341167006,1730507447597,-150.0,0.00044363,2]
[341167007,1730507447607,-150.0,0.00044365,2]
[341167008,1730507447616,-150.0,0.00044366,2]
[341167009,1730507447626,-150.0,0.00044369,2]
[341167010,1730507447638,-150.0,0.00044373,2]
[341167011,1730507447648,-10000.0,0.00044375,120]
[341167012,1730507447658,-150.0,0.00044375,2]
[341167013,1730507447667,-150.0,0.00044375,2]
[341167014,1730507447677,-150.0,0.00044375,2]
[341167015,1730507447686,-150.0,0.00044381,2]
[341167016,1730507447695,-150.0,0.00044394,2]
[341167017,1730507447703,-5000.0,0.000444,120]
[341167018,1730507447713,-10000.0,0.000444,120]
[341167019,1730507447724,-150.0,0.00044401,2]
[341167020,1730507447735,-182.43,0.00044404,2]
[341167021,1730507447746,-150.0,0.00044409,2]
[341167022,1730507447758,-150.0,0.00044409,2]
[341167023,1730507447768,-150.0,0.0004442,2]
[341167024,1730507447777,-150.0,0.00044424,2]
[341167025,1730507447786,-150.0,0.00044432,2]
[341167026,1730507447796,-150.0,0.00044434,2]
[341167027,1730507447805,-150.0,0.00044439,2]
[341167028,1730507447814,-5000.0,0.0004445,120]
[341167029,1730507447823,-10000.0,0.0004445,120]
[341167030,1730507447832,-150.0,0.00044452,2]
[341167031,1730507447841,-150.0,0.00044453,2]
[341167032,1730507447850,-150.0,0.00044455,2]
[341167033,1730507447859,-150.0,0.00044458,2]
[341167034,1730507447868,-150.0,0.00044459,2]
[341167035,1730507447878,-150.0,0.00044459,2]
[341167036,1730507447887,-10000.0,0.00044475,120]
[341167037,1730507447896,-10000.0,0.00044475,120]
[341167038,1730507447905,-150.0,0.00044494,2]
[341167039,1730507447914,-150.0,0.00044496,2]
[341167040,1730507447924,-150.0,0.00044498,2]
[341167041,1730507447933,-150.0,0.00044499,2]
[341167042,1730507447942,-5000.0,0.000445,120]
[341167043,1730507447951,-10000.0,0.000445,120]
[341167044,1730507447959,-10000.0,0.000445,120]
[341167045,1730507447968,-150.0,0.00044502,2]
[341167046,1730507447978,-150.0,0.00044512,2]
[341167047,1730507447987,-150.0,0.00044516,2]
[341167048,1730507447996,-150.0,0.00044517,2]
[341167049,1730507448005,-150.0,0.00044519,2]
[341167050,1730507448014,-150.0,0.0004452,2]
[341167051,1730507448023,-150.0,0.0004452,2]
[341167052,1730507448033,-150.0,0.00044522,2]
[341167053,1730507448043,-10000.0,0.00044525,120]
[341167054,1730507448052,-150.0,0.00044525,2]
[341167055,1730507448061,-1707.778013,0.00044527,2]
[341167056,1730507448070,-150.0,0.00044529,2]
[341167057,1730507448079,-150.0,0.0004453,2]
[341167058,1730507448089,-150.0,0.00044536,2]
[341167059,1730507448098,-500.0,0.00044539,120]
[341167060,1730507448107,-150.0,0.00044545,2]
[341167061,1730507448117,-5000.0,0.0004455,120]
[341167062,1730507448126,-9951.0,0.0004455,120]
[341167063,1730507448135,-150.0,0.00044551,2]
[341167064,1730507448145,-150.0,0.00044553,2]
[341167065,1730507448155,-150.0,0.00044559,2]
[341167066,1730507448164,-150.0,0.0004456,2]
[341167067,1730507448173,-150.0,0.00044567,2]
[341167068,1730507448182,-150.0,0.00044571,2]
[341167069,1730507448191,-500.0,0.00044573,10]
[341167070,1730507448201,-150.0,0.00044573,2]
[341167071,1730507448211,-150.0,0.0004458,2]
[341167072,1730507448220,-150.0,0.00044584,2]
[341167073,1730507448229,-150.0,0.00044584,2]
[341167074,1730507448239,-150.0,0.00044586,2]
[341167075,1730507448248,-150.0,0.00044586,2]
[341167076,1730507448258,-150.0,0.00044587,2]
[341167077,1730507448267,-10000.0,0.0004459,120]
[341167078,1730507448277,-150.0,0.00044595,2]
[341167079,1730507448287,-4717.916133,0.00044596,2]
[341167080,1730507448296,-8616.5949214,0.00044596,2]
[341167081,1730507448305,-2451.1954279,0.00044596,2]
[341167082,1730507448315,-1185.7220021,0.00044596,2]
[341167083,1730507448324,-1677.365724,0.00044596,2]
[341167084,1730507448333,-150.0,0.00044599,2]
[341167085,1730507448344,-10000.0,0.000446,120]
[341167086,1730507448353,-31780.64456739,0.000446,120]
[341167087,1730507448362,-1880.28,0.000446,2]
[341167088,1730507448371,-150.0,0.00044603,2]
[341167089,1730507448380,-150.0,0.00044604,2]
[341167090,1730507448390,-150.0,0.00044609,2]
[341167091,1730507448399,-150.0,0.00044613,2]
[341167092,1730507448409,-150.0,0.00044615,2]
[341167093,1730507448418,-154.54124847,0.00044619,2]
[341167094,1730507448430,-193.17656058,0.00044619,2]
[341167095,1730507448440,-14780.38643365,0.0004462,2]
[341167096,1730507448449,-224.43557278,0.0004462,2]
[341167097,1730507448459,-4000.0,0.00044626,30]
[341167098,1730507448469,-588.0,0.00044626,30]
[341167099,1730507448478,-178.404638,0.00044626,14]
[341167100,1730507448487,-205.79465,0.00044626,14]
[341167101,1730507448496,-205.79465,0.00044626,14]
[341167102,1730507448506,-1487.474,0.00044626,30]
[341167103,1730507448516,-10419.74661176,0.00044627,3]
[341167104,1730507448525,-14602.80954509,0.00044627,3]
[341167105,1730507448535,-50000.0,0.00044627,20]
[341167106,1730507448544,-50000.0,0.00044627,21]
[341167107,1730507448553,-50000.0,0.00044627,22]
[341167108,1730507448562,-50000.0,0.00044627,23]
[341167109,1730507448571,-238177.93767741,0.00044627,2]
[341167110,1730507448580,-10020.55635114,0.00044627,2]
[341167111,1730507448590,-14540.23679579,0.00044627,2]
[341167112,1730507448600,-1809.02717012,0.00044627,2]
[341167113,1730507448609,-3894.31415348,0.00044627,2]
[341167114,1730507448618,-11658.55997064,0.00044627,2]
[341167115,1730507448627,-1962.46534565,0.00044627,2]
[341167116,1730507448636,-5058.09196006,0.00044627,2]
[341167117,1730507448645,-3197.85373993,0.00044627,2]
[341167118,1730507448654,-1550.62687306,0.00044627,2]
[341167119,1730507448664,-371.90605494,0.00044627,2]
[341167120,1730507448673,-8151.43499354,0.00044627,2]
[341167121,1730507448682,-564.2078936,0.00044627,2]
[341167122,1730507448691,-1808.93855066,0.00044627,2]
[341167123,1730507448700,-3194.62464242,0.00044627,2]
[341167124,1730507448709,-172.74269249,0.00044627,2]
[341167125,1730507448717,-6980.27775642,0.00044627,2]
[341167126,1730507448726,-550.0,0.00044627,2]
[341167127,1730507448735,-1444.38580466,0.00044627,2]
[341167128,1730507448745,-387.73900593,0.00044627,2]
[341167129,1730507448754,-91793.22032831,0.00044627,2]
[341167130,1730507448763,-14724.32882828,0.00044627,2]
[341167131,1730507448773,-171.0942466,0.00044627,2]
[341167132,1730507448781,-6000.0,0.00044627,2]
[341167133,1730507448790,-1017.6410876,0.00044627,2]
[341167134,1730507448799,-14407.95630538,0.00044627,2]
[341167135,1730507448808,-554.67184169,0.00044627,2]
[341167136,1730507448817,-150.0,0.00044627,2]
[341167137,1730507448826,-436569.17784826,0.00044627,2]
[341167138,1730507448835,-617.00889313,0.00044627,2]
[341167139,1730507448844,-211.51496446,0.00044627,2]
[341167140,1730507448853,-36127.94559238,0.00044627,2]
[341167141,1730507448862,-74281.52121927,0.00044627,2]
[341167142,1730507448871,-300.49736012,0.00044627,2]
[341167143,1730507448880,-151.0,0.00044627,14]
[341167144,1730507448890,-151.0,0.00044627,14]
[341167145,1730507448899,-151.0,0.00044627,14]
[341167146,1730507448907,-205.79465,0.00044627,14]
[341167147,1730507448916,-205.79465,0.00044627,14]
[341167148,1730507448926,-205.79465,0.00044627,14]
[341167149,1730507448935,-205.79465,0.00044627,14]
[341167150,1730507448944,-3100.346348,0.00044627,30]
[341167151,1730507448953,-500.0,0.00044731,4]
[341167152,1730507448962,-1000.0,0.00044739,2]
[341167153,1730507448972,-999.0,0.00044739,120]
[341167154,1730507448981,-500.0,0.0004474,4]
[341167155,1730507448990,-500.0,0.00044749,4]
[341167156,1730507448999,-4619.68902984,0.00044759,2]
[341167157,1730507449009,-311.2627217,0.0004477,16]
[341167158,1730507449020,-700.0,0.0004477,16]
[341167159,1730507449029,-700.0,0.0004477,16]
[341167160,1730507449039,-700.0,0.0004477,16]
[341167161,1730507449049,-700.0,0.0004477,16]
[341167162,1730507449058,-700.0,0.0004477,16]
[341167163,1730507449067,-7930.18510142,0.0004477,2]
[341167164,1730507449077,-1011.1,0.000448,79]
[341167165,1730507449087,-971.71,0.00044878,2]
[341167166,1730507449097,-2800.0,0.000449,16]
[341167167,1730507449106,-167.11,0.00044999,2]
[341167168,1730507449115,-544.0,0.00045,120]
[341167169,1730507449125,-1537.21301217,0.00045,14]
[341167170,1730507449133,-155.0,0.00045,120]
[341167171,1730507449142,-19140.12547527,0.00045,7]
[341167172,1730507449152,-10000.0,0.00045,120]
[341167173,1730507449161,-7044.17543397,0.00045,120]
[341167174,1730507449170,-839.72,0.000452,60]
[341167175,1730507449179,-863.42,0.00045205,2]
[341167176,1730507449188,-863.59,0.00045205,2]
[341167177,1730507449197,-90233.0,0.00045289,10]
[341167178,1730507449206,-310.26650371,0.00045324,2]
[341167179,1730507449215,-150.0,0.00045422,2]
[341167180,1730507449224,-999.0,0.00045424,120]
[341167181,1730507449233,-150.110205,0.00045498,120]
[341167182,1730507449243,-853.14,0.00045616,2]
[341167183,1730507449252,-246.28549664,0.00045619,30]
[341167184,1730507449262,-1000.0,0.00045994,2]
[341167185,1730507449271,-85514.99,0.00045999,2]
[341167186,1730507449280,-151.0,0.00045999,14]
[341167187,1730507449289,-205.79465,0.00045999,14]
[341167188,1730507449299,-205.79465,0.00045999,14]
[341167189,1730507449309,-10000.0,0.00046,120]
[341167190,1730507449317,-178.84,0.00046076,2]
[341167191,1730507449327,-156.457,0.00046087,120]
[341167192,1730507449336,-999.0,0.00046109,120]
[341167193,1730507449345,-290.206,0.00046127,2]
[341167194,1730507449354,-166.89,0.00046157,2]
[341167195,1730507449365,-1407.931798,0.0004632,91]
[341167196,1730507449376,-150.110205,0.00046498,120]
[341167197,1730507449388,-150.0,0.00046503,2]
[341167198,1730507449401,-5370.0,0.00046513,10]
[341167199,1730507449410,-500.0,0.00046543,36]
[341167200,1730507449420,-500.0,0.00046575,30]
[341167201,1730507449432,-478.23698424,0.00046575,30]
[341167202,1730507449442,-500.0,0.00046575,30]
[341167203,1730507449451,-500.0,0.00046575,30]
[341167204,1730507449461,-500.0,0.00046575,30]
[341167205,1730507449470,-500.0,0.00046575,30]
[341167206,1730507449479,-500.0,0.00046575,30]
[341167207,1730507449488,-500.0,0.00046575,2]
[341167208,1730507449498,-500.0,0.00046575,30]